fUST/lending_fUST_20251107
["ID","MTS","AMOUNT","RATE_DAILY","PERIOD"]
[393326237,1762476738743,150.0,0.000137,2]
[393326238,1762476738846,3227.0,0.000185,3]
[393326239,1762476749502,150.0,0.000137,2]
[393326241,1762476759696,150.0,0.000137,2]
[393326242,1762476770517,150.0,0.000137,2]
[393326243,1762476775332,150.0,0.000137,2]
[393326244,1762476781064,150.0,0.000137,2]
[393326245,1762476785803,150.0,0.000137,2]
[393326246,1762476791782,150.0,0.000137,2]
[393326247,1762476933811,3658.94094077,0.000185,3]
[393326248,1762477000167,2019.71,0.00037206,60]
[393326249,1762477000487,2019.71,0.00037206,60]
[393326250,1762477000826,2019.71,0.00037206,60]
[393326251,1762477001097,2019.71,0.00037206,60]
[393326252,1762477001390,2019.71,0.00037206,60]
[393326253,1762477001729,2019.71,0.00037206,60]
[393326254,1762477002055,2019.71,0.00037206,60]
[393326255,1762477002365,2019.71,0.00037206,60]
[393326256,1762477002687,2019.71,0.00037206,60]
[393326257,1762477003385,2019.71,0.00037206,60]
[393326258,1762477003652,2019.71,0.00037206,60]
[393326259,1762477003964,2019.71,0.00037206,60]
[393326260,1762477004300,2019.71,0.00037206,60]
[393326261,1762477004617,2019.71,0.00037206,60]
[393326262,1762477004927,2019.71,0.00037206,60]
[393326263,1762477005238,2019.71,0.00037206,120]
[393326264,1762477005504,2019.71,0.00037206,120]
[393326265,1762477005752,2019.71,0.00037206,120]
[393326266,1762477006028,2019.71,0.00037206,120]
[393326267,1762477006334,2019.71,0.00037206,120]
[393326268,1762477006635,2019.71,0.00037206,120]
[393326269,1762477006991,2019.71,0.00037206,120]
[393326270,1762477007271,2019.71,0.00037206,120]
[393326271,1762477007568,2019.84102876,0.00037206,120]
[393326272,1762477010556,795.0,0.00037206,20]
[393326273,1762477312569,2000.0,0.00014494,2]
[393326277,1762477674542,1000.0,0.00037253,20]
[393326278,1762477675423,1000.0,0.00037253,20]
[393326279,1762477676009,1000.0,0.00037253,20]
[393326280,1762477676454,1000.0,0.00037253,20]
[393326281,1762477676900,1000.0,0.00037253,20]
[393326282,1762477682688,700.0,0.00037253,20]
[393326329,1762477832203,-300.0,0.00015938,2]
[393326331,1762477832213,-177.0,0.00015941,2]
[393326333,1762477832224,-300.0,0.00015958,2]
[393326335,1762477832234,-1200.0,0.00015989,2]
[393326337,1762477832243,-21514.5449416,0.0001599,2]
[393326339,1762477832252,-168.0,0.00016095,2]
[393326341,1762477832262,-300.0,0.00016217,2]
[393326343,1762477832271,-300.0,0.00016452,2]
[393326345,1762477832280,-300.0,0.00016475,2]
[393326347,1762477832291,-300.0,0.00016534,2]
[393326349,1762477832300,-300.0,0.00016569,2]
[393326351,1762477832309,-50000.0,0.00016569,2]
[393326352,1762477832319,-164.21961969,0.00016602,2]
[393326354,1762477832328,-834.08550772,0.00016673,2]
[393326356,1762477832336,-168.0,0.00016682,2]
[393326357,1762477832345,-152.3,0.000167,2]
[393326359,1762477832354,-152.3,0.000167,2]
[393326361,1762477832364,-152.3,0.000167,2]
[393326363,1762477832372,-152.3,0.000167,2]
[393326365,1762477832382,-152.3,0.000167,2]
[393326367,1762477832391,-152.3,0.000167,2]
[393326369,1762477832400,-152.3,0.000167,2]
[393326371,1762477832410,-152.3,0.000167,2]
[393326373,1762477832419,-152.3,0.000167,2]
[393326375,1762477832428,-152.3,0.000167,2]
[393326376,1762477832437,-152.3,0.000167,2]
[393326378,1762477832446,-152.3,0.000167,2]
[393326380,1762477832455,-152.3,0.000167,2]
[393326381,1762477832465,-152.3,0.000167,2]
[393326382,1762477832474,-152.3,0.000167,2]
[393326383,1762477832483,-152.3,0.000167,2]
[393326384,1762477832493,-152.3,0.000167,2]
[393326385,1762477832502,-152.3,0.000167,2]
[393326386,1762477832511,-152.3,0.000167,2]
[393326387,1762477832520,-152.3,0.000167,2]
[393326388,1762477832530,-152.3,0.000167,2]
[393326389,1762477832539,-152.3,0.000167,2]
[393326390,1762477832548,-152.3,0.000167,2]
[393326391,1762477832558,-237.44002854,0.000167,2]
[393326392,1762477832567,-300.0,0.00016701,2]
[393326393,1762477832576,-300.0,0.00016701,2]
[393326394,1762477832585,-300.0,0.00016701,2]
[393326395,1762477832595,-300.0,0.00016701,2]
[393326396,1762477832603,-300.0,0.00016701,2]
[393326397,1762477832613,-1200.0,0.00016702,2]
[393326398,1762477832623,-180.31,0.00016763,2]
[393326399,1762477832632,-180.31,0.00016763,2]
[393326400,1762477832641,-516.91074328,0.00016773,2]
[393326401,1762477832650,-507.63711996,0.00016773,2]
[393326402,1762477832659,-500.0,0.00016773,2]
[393326403,1762477832668,-500.0,0.00016773,2]
[393326404,1762477832679,-500.0,0.00016773,2]
[393326405,1762477832687,-500.0,0.00016773,2]
[393326406,1762477832696,-500.0,0.00016773,2]
[393326407,1762477832706,-500.0,0.00016773,2]
[393326408,1762477832715,-266.82677426,0.00016773,2]
[393326409,1762477832724,-500.0,0.00016773,2]
[393326410,1762477832733,-500.0,0.00016773,2]
[393326411,1762477832742,-336.58996424,0.00016773,2]
[393326412,1762477832752,-502.15661401,0.00016773,2]
[393326413,1762477832762,-500.0,0.00016773,2]
[393326414,1762477832770,-500.0,0.00016773,2]
[393326415,1762477832781,-500.0,0.00016773,2]
[393326416,1762477832790,-500.0,0.00016773,2]
[393326417,1762477832799,-500.0,0.00016773,2]
[393326418,1762477832808,-500.0,0.00016773,2]
[393326419,1762477832817,-500.0,0.00016773,2]
[393326420,1762477832827,-502.5065032,0.00016773,2]
[393326421,1762477832838,-500.0,0.00016773,2]
[393326422,1762477832847,-41096.39803052,0.00016773,2]
[393326423,1762477832858,-41282.27918341,0.00016773,2]
[393326424,1762477832870,-27930.99999999,0.00016773,2]
[393326425,1762477832912,-215.51141417,0.00015989,2]
[393326426,1762477832923,-500.0,0.00015989,2]
[393326427,1762477832933,-294.49472979,0.00015989,2]
[393326428,1762477832944,-205.50527021,0.00015989,2]
[393326429,1762477832953,-453.66029671,0.00015989,2]
[393326430,1762477832974,-46.33970329,0.00015989,2]
[393326431,1762477832984,-500.0,0.00016438,2]
[393326432,1762477832993,-23632.98250245,0.00016773,2]
[393326433,1762477833003,-1078.21365796,0.00016773,2]
[393326434,1762477833014,-196399.0655182,0.00016773,2]
[393326435,1762477833025,-1004.13082729,0.00016773,2]
[393326436,1762477833078,-573.88581989,0.00015989,2]
[393326437,1762477833087,-500.0,0.00015989,2]
[393326438,1762477833098,-500.0,0.00015989,2]
[393326439,1762477833108,-500.0,0.00015989,2]
[393326440,1762477833118,-500.0,0.00016438,2]
[393326441,1762477833128,-490.7826863,0.00016438,2]
[393326442,1762477833142,-9.2173137,0.00016438,2]
[393326443,1762477833151,-229402.87671048,0.00016773,2]
[393326464,1762477838152,-500.0,0.00015989,2]
[393326465,1762477838162,-500.0,0.00015989,2]
[393326466,1762477838171,-500.0,0.00015989,2]
[393326467,1762477838182,-500.0,0.00015989,2]
[393326468,1762477838191,-500.0,0.00015989,2]
[393326469,1762477838200,-500.0,0.00015989,2]
[393326470,1762477838210,-500.0,0.00015989,2]
[393326473,1762477838220,-518.82892576,0.00015989,2]
[393326475,1762477838230,-248.66921699,0.00015989,2]
[393326477,1762477838239,-500.0,0.00015989,2]
[393326478,1762477838249,-500.0,0.00015989,2]
[393326479,1762477838259,-500.0,0.00016438,2]
[393326480,1762477838269,-219.79202212,0.00016438,2]
[393326481,1762477838278,-500.0,0.00016438,2]
[393326482,1762477838288,-500.0,0.00016438,2]
[393326483,1762477838297,-500.0,0.00016438,2]
[393326484,1762477838307,-13299.62040173,0.00016773,2]
[393326485,1762477838321,-66716.37722969,0.00016773,2]
[393326486,1762477838331,-8784.3933303,0.00016773,2]
[393326487,1762477838343,-33573.24555841,0.00016773,2]
[393326488,1762477838354,-799.41704957,0.00016773,2]
[393326489,1762477838364,-152.3,0.000168,2]
[393326490,1762477838373,-152.3,0.000168,2]
[393326491,1762477838382,-152.3,0.000168,2]
[393326492,1762477838392,-152.3,0.000168,2]
[393326493,1762477838401,-152.3,0.000168,2]
[393326494,1762477838411,-152.3,0.000168,2]
[393326495,1762477838420,-152.3,0.000168,2]
[393326496,1762477838432,-152.3,0.000168,2]
[393326497,1762477838442,-152.3,0.000168,2]
[393326498,1762477838452,-152.3,0.000168,2]
[393326499,1762477838461,-152.3,0.000168,2]
[393326500,1762477838471,-152.3,0.000168,2]
[393326501,1762477838481,-168.0,0.00016803,2]
[393326502,1762477838490,-300.0,0.00016808,2]
[393326503,1762477838500,-159.96937446,0.00016873,2]
[393326504,1762477838508,-500.0,0.00016873,2]
[393326505,1762477838518,-500.0,0.00016873,2]
[393326506,1762477838527,-481.56779637,0.00016873,2]
[393326507,1762477838536,-500.0,0.00016873,2]
[393326508,1762477838545,-151.0,0.00016873,2]
[393326509,1762477838555,-449.0,0.00016873,2]
[393326510,1762477838565,-500.0,0.00016873,2]
[393326511,1762477838574,-151.0,0.00016873,2]
[393326512,1762477838583,-381.77,0.00016918,2]
[393326513,1762477838592,-500.0,0.00016928,2]
[393326514,1762477838601,-151.0,0.00016928,2]
[393326515,1762477838610,-449.0,0.00016928,2]
[393326516,1762477838620,-500.0,0.00016928,2]
[393326517,1762477838629,-151.68970475,0.00016928,2]
[393326518,1762477838638,-291.0,0.0001696,2]
[393326519,1762477838647,-500.0,0.00016982,2]
[393326520,1762477838657,-228.0,0.00016983,2]
[393326521,1762477838666,-449.0,0.00016983,2]
[393326522,1762477838676,-466.0,0.00016983,2]
[393326523,1762477838686,-1112.1825062,0.00016993,2]
[393326524,1762477838695,-221.67,0.00017016,2]
[393326525,1762477838705,-204.89834836,0.00017016,2]
[393326526,1762477838714,-151.0,0.00017016,2]
[393326527,1762477838722,-151.0,0.00017016,2]
[393326528,1762477838732,-151.0,0.00017016,2]
[393326529,1762477838741,-151.0,0.00017016,2]
[393326530,1762477838750,-500.0,0.00017016,2]
[393326531,1762477838759,-5870.18914204,0.00017016,2]
[393326532,1762477838768,-449.0,0.00017037,2]
[393326533,1762477838778,-151.0,0.00017071,2]
[393326534,1762477838788,-151.0,0.00017071,2]
[393326535,1762477838797,-151.0,0.00017071,2]
[393326536,1762477838807,-500.00151632,0.00017071,2]
[393326537,1762477838824,-500.0,0.00017073,2]
[393326538,1762477838836,-500.0,0.00017073,2]
[393326539,1762477838846,-449.0,0.00017092,2]
[393326540,1762477838857,-226.746124,0.00017099,2]
[393326541,1762477838868,-158.486226,0.00017115,2]
[393326542,1762477838878,-151.0,0.00017115,2]
[393326543,1762477838888,-500.0,0.00017115,2]
[393326544,1762477838897,-500.0,0.00017115,2]
[393326545,1762477838907,-500.0,0.00017115,2]
[393326546,1762477838917,-500.0,0.00017115,2]
[393326547,1762477838928,-500.0,0.00017115,2]
[393326548,1762477838937,-500.0,0.00017115,2]
[393326549,1762477838946,-500.0,0.00017115,2]
[393326550,1762477838956,-500.0,0.00017115,2]
[393326551,1762477838966,-418.3890027,0.00017115,2]
[393326552,1762477838976,-151.0,0.00017115,2]
[393326553,1762477838986,-151.0,0.00017115,2]
[393326554,1762477838995,-523.88044041,0.00017116,2]
[393326555,1762477839005,-500.0,0.00017116,2]
[393326556,1762477839014,-500.0,0.00017116,2]
[393326557,1762477839024,-432.92836233,0.00017116,2]
[393326558,1762477839034,-500.0,0.00017116,2]
[393326559,1762477839043,-1791.7470503,0.00017118,2]
[393326560,1762477839054,-24644.6089719,0.00017118,2]
[393326561,1762477839066,-288.1886428,0.00017118,2]
[393326562,1762477839076,-151.0,0.00017126,2]
[393326563,1762477839086,-151.0,0.00017126,2]
[393326564,1762477839096,-300.0,0.00017134,2]
[393326565,1762477839106,-373.0,0.00017136,2]
[393326566,1762477839116,-449.0,0.00017147,2]
[393326567,1762477839125,-151.0,0.0001717,2]
[393326568,1762477839137,-500.3840302,0.0001717,2]
[393326569,1762477839147,-501.40387069,0.0001717,2]
[393326570,1762477839157,-151.0,0.0001717,2]
[393326571,1762477839167,-151.0,0.0001717,2]
[393326572,1762477839177,-1000.0,0.00017172,2]
[393326573,1762477839187,-1000.0,0.00017172,2]
[393326574,1762477839197,-1000.0,0.00017172,2]
[393326575,1762477839206,-1000.0,0.00017172,2]
[393326576,1762477839216,-473.0344634,0.00017172,2]
[393326577,1762477839225,-61.3457684,0.00017173,2]
[393326578,1762477839238,-439.24963721,0.00017173,2]
[393326579,1762477839248,-501.83948246,0.00017173,2]
[393326580,1762477839257,-502.3151453,0.00017173,2]
[393326581,1762477839267,-503.11692689,0.00017173,2]
[393326582,1762477839277,-500.0,0.00017173,2]
[393326583,1762477839286,-501.10303678,0.00017173,2]
[393326584,1762477839296,-511.44505115,0.00017173,2]
[393326585,1762477839306,-505.44469791,0.00017173,2]
[393326586,1762477839394,-158.75299143,0.00017173,2]
[393326587,1762477839420,-513.22291851,0.00017173,2]
[393326588,1762477839431,-502.5296402,0.00017173,2]
[393326589,1762477839440,-521.2039687,0.00017173,2]
[393326590,1762477839450,-500.0,0.00017173,2]
[393326591,1762477839460,-500.88051498,0.00017173,2]
[393326592,1762477839470,-500.0,0.00017173,2]
[393326593,1762477839479,-500.0,0.00017173,2]
[393326594,1762477839488,-500.0,0.00017173,2]
[393326595,1762477839497,-570.79405327,0.00017173,2]
[393326596,1762477839506,-473.30979316,0.00017173,2]
[393326597,1762477839515,-632.18502602,0.00017173,2]
[393326598,1762477839525,-500.28400259,0.00017173,2]
[393326599,1762477839536,-501.00899291,0.00017173,2]
[393326600,1762477839546,-501.80001799,0.00017173,2]
[393326601,1762477839555,-500.0,0.00017173,2]
[393326602,1762477839566,-151.0,0.00017173,2]
[393326603,1762477839577,-151.0,0.00017173,2]
[393326604,1762477839588,-151.0,0.00017173,2]
[393326605,1762477839599,-151.0,0.00017173,2]
[393326606,1762477839610,-151.0,0.00017173,2]
[393326607,1762477839620,-151.0,0.00017173,2]
[393326608,1762477839631,-151.0,0.00017173,2]
[393326609,1762477839641,-151.0,0.00017173,2]
[393326610,1762477839651,-151.0,0.00017173,2]
[393326611,1762477839661,-198.0,0.00017173,2]
[393326612,1762477839670,-151.0,0.00017173,2]
[393326613,1762477839681,-151.0,0.0001718,2]
[393326614,1762477839691,-151.0,0.0001718,2]
[393326615,1762477839700,-449.0,0.00017202,2]
[393326616,1762477839709,-198.0,0.00017225,2]
[393326617,1762477839719,-151.0,0.00017225,2]
[393326618,1762477839728,-151.0,0.00017225,2]
[393326619,1762477839737,-151.0,0.00017228,2]
[393326620,1762477839747,-151.0,0.00017228,2]
[393326621,1762477839756,-151.0,0.00017228,2]
[393326622,1762477839766,-151.0,0.00017228,2]
[393326624,1762477839775,-151.0,0.00017235,2]
[393326625,1762477839785,-151.0,0.00017235,2]
[393326626,1762477839794,-449.0,0.00017257,2]
[393326627,1762477839804,-5870.18914203,0.00017263,2]
[393326628,1762477839813,-151.0,0.00017279,2]
[393326629,1762477839822,-267.19328333,0.00017279,2]
[393326630,1762477839831,-198.0,0.00017283,2]
[393326631,1762477839840,-198.0,0.00017283,2]
[393326632,1762477839849,-111.7984028,0.00017283,2]
[393326633,1762477839861,-86.2015972,0.00017283,2]
[393326634,1762477839870,-198.0,0.00017283,2]
[393326635,1762477839880,-245.0,0.0001729,2]
[393326636,1762477839897,-245.0,0.0001729,2]
[393326637,1762477839907,-449.0,0.00017311,2]
[393326638,1762477839916,-504.72844813,0.00017321,2]
[393326639,1762477839925,-506.72602262,0.00017321,2]
[393326640,1762477839935,-1000.0,0.00017321,2]
[393326641,1762477839944,-1000.0,0.00017321,2]
[393326642,1762477839953,-516.75945356,0.00017321,2]
[393326643,1762477839962,-508.30689133,0.00017321,2]
[393326644,1762477839971,-1000.0,0.00017321,2]
[393326646,1762477839980,-804.26894558,0.00017321,2]
[393326647,1762477839990,-502.33198603,0.00017321,2]
[393326649,1762477839999,-1000.0,0.00017321,2]
[393326651,1762477840008,-603.17850464,0.00017321,2]
[393326653,1762477840017,-151.0,0.00017334,2]
[393326655,1762477840026,-449.0,0.00017366,2]
[393326657,1762477840035,-245.0,0.00017389,2]
[393326659,1762477840044,-272.68366299,0.00017408,2]
[393326661,1762477840056,-175.86001794,0.00017415,2]
[393326663,1762477840068,-501.31859947,0.00017415,2]
[393326665,1762477840078,-1000.0,0.00017421,2]
[393326667,1762477840087,-1000.0,0.00017421,2]
[393326669,1762477840097,-449.0,0.00017421,2]
[393326671,1762477840107,-561.47704528,0.00017473,2]
[393326673,1762477840116,-449.0,0.00017476,2]
[393326675,1762477840125,-300.0,0.00017502,2]
[393326677,1762477840137,-5870.18914203,0.0001751,2]
[393326679,1762477840146,-449.0,0.00017531,2]
[393326681,1762477840155,-449.0,0.00017585,2]
[393326683,1762477840165,-449.0,0.0001764,2]
[393326685,1762477840173,-449.0,0.00017695,2]
[393326687,1762477840187,-1009.50037978,0.00017721,2]
[393326689,1762477840197,-1000.0,0.00017721,2]
[393326691,1762477840206,-449.0,0.0001775,2]
[393326693,1762477840215,-5870.18914203,0.00017757,2]
[393326695,1762477840224,-449.0,0.00017805,2]
[393326697,1762477840234,-449.0,0.00017859,2]
[393326699,1762477840243,-500.0,0.00017868,2]
[393326701,1762477840253,-808.42499578,0.00017868,2]
[393326703,1762477840262,-1007.53357357,0.00017868,2]
[393326705,1762477840271,-449.0,0.00017914,2]
[393326707,1762477840281,-500.0,0.00017968,2]
[393326709,1762477840290,-449.0,0.00017969,2]
[393326711,1762477840299,-244.65613354,0.00017991,2]
[393326713,1762477840308,-321.31801276,0.00018,2]
[393326715,1762477840317,-21009.95301331,0.00018004,2]
[393326717,1762477840329,-9567.64419222,0.00018004,2]
[393326719,1762477840339,-5870.18914203,0.00018004,2]
[393326721,1762477840348,-3387.45339321,0.0001801,2]
[393326723,1762477840357,-449.0,0.00018024,2]
[393326725,1762477840367,-500.0,0.00018073,2]
[393326727,1762477840375,-197.56588823,0.00018073,2]
[393326729,1762477840385,-449.0,0.00018078,2]
[393326730,1762477840394,-449.0,0.00018133,2]
[393326731,1762477840404,-632.0,0.00018248,2]
[393326732,1762477840414,-1002.96737249,0.00018268,2]
[393326733,1762477840423,-29814.26640086,0.00018301,2]
[393326734,1762477840439,-1344.14002313,0.00018301,2]
[393326735,1762477840449,-18178.87218158,0.00018301,2]
[393326736,1762477840459,-179.78410767,0.00018491,2]
[393326737,1762477840468,-366.41966762,0.00018591,2]
[393326738,1762477840478,-1000.0,0.00019091,2]
[393326739,1762477840487,-1000.0,0.00019091,2]
[393326740,1762477840497,-424.24222295,0.00019091,2]
[393326742,1762477840508,-5189.25435984,0.00019287,2]
[393326743,1762477840520,-309.70118686,0.00019287,2]
[393326744,1762477840529,-168.0,0.00019332,2]
[393326745,1762477840539,-168.0,0.00019411,2]
[393326746,1762477840549,-168.0,0.00019464,2]
[393326747,1762477840558,-168.0,0.00019522,2]
[393326748,1762477840568,-168.0,0.00019567,2]
[393326749,1762477840578,-1226.9828317,0.00019771,2]
[393326750,1762477840587,-168.0,0.000198,2]
[393326751,1762477840596,-293.04242031,0.00020187,2]
[393326893,1762477879877,160.00000001,0.000268,20]
[393326895,1762478050990,3800.0,0.00018,3]
[393326896,1762478059099,506.05791095,0.00018,3]
[393327075,1762479038521,-150.029429,0.0001485,2]
[393327076,1762479038531,-150.029429,0.00015,2]
[393327077,1762479038542,-150.0,0.00015333,2]
[393327079,1762479038552,-300.0,0.00015664,2]
[393327080,1762479038562,-300.0,0.00015664,2]
[393327081,1762479038571,-300.0,0.00015664,2]
[393327082,1762479038581,-300.0,0.00015664,2]
[393327083,1762479038591,-300.0,0.00015664,2]
[393327084,1762479038603,-1200.0,0.00015664,2]
[393327085,1762479038613,-491.54410704,0.00015664,2]
[393327086,1762479038622,-500.0,0.00015664,2]
[393327087,1762479038632,-500.0,0.00015664,2]
[393327088,1762479038642,-500.0,0.00015664,2]
[393327089,1762479038651,-500.0,0.00015664,2]
[393327090,1762479038661,-500.0,0.00015664,2]
[393327091,1762479038671,-563.17789238,0.00015664,2]
[393327092,1762479038681,-500.0,0.00015664,2]
[393327093,1762479038690,-500.0,0.00015664,2]
[393327094,1762479038700,-500.0,0.00015664,2]
[393327095,1762479038709,-500.0,0.00015664,2]
[393327096,1762479038718,-500.0,0.00015664,2]
[393327097,1762479038728,-500.0,0.00015664,2]
[393327098,1762479038737,-500.0,0.00015664,2]
[393327099,1762479038747,-500.0,0.00015664,2]
[393327100,1762479038756,-500.0,0.00015664,2]
[393327101,1762479038765,-500.0,0.00015664,2]
[393327102,1762479038775,-500.0,0.00015664,2]
[393327103,1762479038784,-500.0,0.00015664,2]
[393327104,1762479038794,-500.0,0.00015664,2]
[393327105,1762479038803,-500.0,0.00015664,2]
[393327106,1762479038812,-500.0,0.00015664,2]
[393327107,1762479038822,-500.0,0.00015664,2]
[393327108,1762479038831,-500.0,0.00015664,2]
[393327109,1762479038841,-500.0,0.00015664,2]
[393327110,1762479038851,-500.0,0.00015664,2]
[393327111,1762479038861,-466.62764594,0.00015664,2]
[393327352,1762479047014,-33.37235406,0.00015664,2]
[393327353,1762479047024,-500.0,0.00015664,2]
[393327354,1762479047033,-500.0,0.00015664,2]
[393327355,1762479047043,-500.0,0.00015664,2]
[393327356,1762479047052,-484.71204568,0.00015664,2]
[393327357,1762479047061,-500.0,0.00015664,2]
[393327358,1762479047070,-500.0,0.00015664,2]
[393327359,1762479047079,-500.0,0.00015664,2]
[393327360,1762479047088,-500.0,0.00015664,2]
[393327361,1762479047097,-500.0,0.00015664,2]
[393327362,1762479047106,-500.0,0.00015664,2]
[393327363,1762479047116,-500.0,0.00015664,2]
[393327364,1762479047124,-500.0,0.00015664,2]
[393327365,1762479047133,-500.0,0.00015664,2]
[393327366,1762479047142,-500.0,0.00015664,2]
[393327367,1762479047151,-500.0,0.00015664,2]
[393327368,1762479047160,-620.28224806,0.00015664,2]
[393327369,1762479047168,-500.0,0.00015664,2]
[393327370,1762479047177,-500.0,0.00015664,2]
[393327371,1762479047186,-500.0,0.00015664,2]
[393327372,1762479047195,-500.0,0.00015664,2]
[393327373,1762479047204,-500.0,0.00015664,2]
[393327374,1762479047306,-500.0,0.00015664,2]
[393327375,1762479047316,-500.0,0.00015664,2]
[393327376,1762479047325,-5485.13373899,0.00015665,2]
[393327377,1762479047334,-495.85867075,0.00015665,2]
[393327378,1762479047343,-41926.20258993,0.00015666,2]
[393327379,1762479047352,-500.0,0.00015673,2]
[393327380,1762479047362,-160.81857196,0.00015883,2]
[393327381,1762479047371,-609.0,0.0001598,2]
[393327382,1762479047380,-326.414,0.00015982,2]
[393327383,1762479047389,-500.24,0.00015982,2]
[393327384,1762479047398,-203.7682571,0.00015984,2]
[393327385,1762479047407,-1000.0,0.00016221,2]
[393327386,1762479047416,-158.796574,0.00016329,2]
[393327387,1762479047430,-455.58253765,0.00016438,2]
[393327388,1762479047439,-168.10305305,0.00016671,2]
[393327389,1762479047448,-160.81857196,0.00016672,2]
[393327390,1762479047457,-1500.0,0.00016768,2]
[393327391,1762479047466,-500.24,0.00016771,2]
[393327392,1762479047476,-500.24,0.00016772,2]
[393327393,1762479047485,-500.24,0.00016772,2]
[393327394,1762479047495,-500.24,0.00016772,2]
[393327395,1762479047505,-500.24,0.00016772,2]
[393327396,1762479047515,-500.24,0.00016772,2]
[393327397,1762479047524,-500.24,0.00016772,2]
[393327398,1762479047533,-500.24,0.00016772,2]
[393327399,1762479047543,-500.24,0.00016772,2]
[393327400,1762479047552,-500.24,0.00016772,2]
[393327401,1762479047561,-500.24,0.00016772,2]
[393327402,1762479047571,-500.24,0.00016772,2]
[393327403,1762479047580,-500.24,0.00016772,2]
[393327404,1762479047589,-500.24,0.00016772,2]
[393327405,1762479047598,-500.24,0.00016772,2]
[393327406,1762479047609,-500.24,0.00016772,2]
[393327407,1762479047618,-500.24,0.00016772,2]
[393327408,1762479047628,-500.24,0.00016772,2]
[393327409,1762479047637,-500.24,0.00016772,2]
[393327410,1762479047646,-500.24,0.00016772,2]
[393327411,1762479047655,-500.24,0.00016772,2]
[393327412,1762479047664,-500.24,0.00016772,2]
[393327413,1762479047674,-500.24848159,0.00016772,2]
[393327414,1762479047683,-500.0,0.00016773,2]
[393327415,1762479047693,-27081.0187334,0.00016773,2]
[393327416,1762479047724,444.5,0.0003287,120]
[393327418,1762479056871,4388.0,0.00037205,20]
[393327426,1762479085755,576.0,0.00032877,120]
[393327427,1762479088617,154.31896926,0.00037205,60]
[393327428,1762479089472,1973.0,0.00037205,20]
[393327431,1762479094394,20411.96540557,0.00032876,120]
[393327442,1762479131034,298.09562575,0.00037205,60]
[393327461,1762479142302,630.60096917,0.00037205,60]
[393327468,1762479148758,166.65301361,0.00037205,60]
[393327470,1762479154431,283.66610357,0.00037205,60]
[393327481,1762479166304,248.19903728,0.00037205,60]
[393327483,1762479168681,265.82527658,0.00037205,60]
[393327494,1762479183028,317.43064391,0.00037205,60]
[393327502,1762479196678,260.8600144,0.00037205,60]
[393327505,1762479200124,572.2414,0.00037205,60]
[393327507,1762479200828,369.22070163,0.00037205,60]
[393327510,1762479209728,153.74274031,0.00037205,60]
[393327514,1762479217644,248.68456416,0.00037205,60]
[393327516,1762479220218,265.20663855,0.00037205,60]
[393327518,1762479221774,550.96965155,0.00037205,60]
[393327524,1762479238943,169.3622823,8.046e-05,2]
[393327567,1762479309131,296.86766369,0.00037205,60]
[393327568,1762479312166,166.11701952,0.00037205,60]
[393327575,1762479421521,1000.0,0.00032,120]